bitfinex-derivatives/quotes_SOLF0:USTF0_20260204
["timestamp","ask_amount","ask_price","bid_price","bid_amount"]
[1770243540632,6.09006557,90.794,90.733,9.942]
[1770243540830,6.09006557,90.794,90.71,7.58435225]
[1770243541131,6.09006557,90.794,90.711,2.76038606]
[1770243541430,6.09006557,90.794,90.68,7.58435225]
[1770243541637,6.09006557,90.794,90.681,2.76069362]
[1770243541831,6.09006557,90.794,90.682,2.76069362]
[1770243542027,6.09006557,90.794,90.683,2.76069362]
[1770243542231,6.09006557,90.794,90.684,2.76069362]
[1770243542427,6.30859525,90.791,90.7,7.58435225]
[1770243542637,6.30859525,90.791,90.72,7.58435225]
[1770243542838,6.30859525,90.809,90.762,9.9389]
[1770243543034,6.30859525,90.827,90.74,7.58435225]
[1770243543242,6.30859525,90.827,90.76,7.58435225]
[1770243543435,6.30859525,90.849,90.761,2.75934251]
[1770243543630,6.30859525,90.849,90.78,7.58435225]
[1770243543835,6.30859525,90.849,90.781,2.75934251]
[1770243544035,6.30859525,90.849,90.78,7.58435225]
[1770243544238,6.30859525,90.849,90.781,2.75851536]
[1770243544439,6.30859525,90.849,90.782,2.75851536]
[1770243544637,6.30859525,90.849,90.788,9.936]
[1770243546438,6.30859525,90.849,90.725,30.00920071]
[1770243546439,6.30859525,90.849,90.73,7.58435225]
[1770243546640,6.30859525,90.849,90.731,2.75888938]
[1770243546844,6.30859525,90.849,90.732,2.75888938]
[1770243547038,6.30859525,90.849,90.733,2.75888938]
[1770243547235,6.30859525,90.849,90.734,2.75888938]
[1770243547435,6.31210017,90.829,90.735,2.75888938]
[1770243547742,6.31210017,90.829,90.736,2.75888938]
[1770243548044,6.31210017,90.826,90.737,2.75888938]
[1770243548236,6.31210017,90.826,90.738,2.75888938]
[1770243548437,6.28776165,90.823,90.75,9.9401]
[1770243548743,6.28776165,90.823,90.751,2.75888938]
[1770243548939,7.58435225,90.83,90.72,9.9435]
[1770243548940,6.28776165,90.803,90.72,9.9435]
[1770243549140,6.28776165,90.803,90.721,2.76034358]
[1770243549343,6.28776165,90.803,90.722,2.76034358]
[1770243549540,6.28776165,90.803,90.723,2.76034358]
[1770243549740,6.28776165,90.803,90.68,7.58435225]
[1770243549940,6.28776165,90.803,90.681,2.76081244]
[1770243550135,6.28776165,90.803,90.68,7.58435225]
[1770243550136,6.28776165,90.803,90.682,2.76081244]
[1770243550335,6.28776165,90.803,90.683,2.76081244]
[1770243550538,6.29804584,90.787,90.706,9.9449]
[1770243550744,6.29804584,90.787,90.707,2.76081244]
[1770243551145,6.29804584,90.787,90.71,9.9445]
[1770243551346,6.29804584,90.787,90.711,2.76081244]
[1770243551541,6.29804584,90.787,90.712,2.76081244]
[1770243551842,6.29804584,90.787,90.713,2.76081244]
[1770243552049,6.29804584,90.787,90.714,2.76081244]
[1770243552251,6.29804584,90.787,90.67,7.58435225]
[1770243552252,6.29804584,90.787,90.715,2.76081244]
[1770243552453,6.29804584,90.787,90.716,2.76081244]
[1770243552654,6.32808198,90.832,90.717,2.76081244]
[1770243552849,6.32808198,90.832,90.72,7.58435225]
[1770243553046,6.32808198,90.832,90.779,9.937]
[1770243553252,6.32808198,90.832,90.78,2.76081244]
[1770243553453,6.32808198,90.832,90.781,2.76081244]
[1770243553651,6.32808198,90.832,90.782,2.76081244]
[1770243553857,6.32808198,90.832,90.783,2.76081244]
[1770243554047,6.32808198,90.832,90.784,2.76081244]
[1770243554253,6.32808198,90.832,90.785,2.76081244]
[1770243554453,6.32808198,90.832,90.786,2.76081244]
[1770243554752,6.32808198,90.832,90.787,2.76081244]
[1770243554953,6.32808198,90.832,90.788,2.76081244]
[1770243555156,6.32808198,90.832,90.789,2.76081244]
[1770243555455,6.32808198,90.832,90.79,2.76081244]
[1770243555758,6.32808198,90.832,90.791,2.76081244]
[1770243555956,6.32808198,90.832,90.724,13.49773428]
[1770243555957,6.32808198,90.832,90.761,9.939]
[1770243557452,6.32808198,90.832,90.778,9.9371]
[1770243557851,6.32808198,90.832,90.74,7.58435225]
[1770243558454,6.32808198,90.832,90.757,9.9394]
[1770243558855,6.32808198,90.832,90.74,7.58435225]
[1770243559558,6.32808198,90.832,90.724,10.19830084]
[1770243560052,4.88457612,90.827,90.752,9.9399]
[1770243562048,4.88457612,90.827,90.761,9.9389]
[1770243562451,4.9253116,90.825,90.752,9.9399]
[1770243563058,22.04,90.909,90.701,19.8911]
[1770243563059,4.9253116,90.823,90.73,10.19830084]
[1770243563261,4.9253116,90.823,90.704,10.19830084]
[1770243563559,4.9253116,90.819,90.695,10.19830084]
[1770243563751,4.9253116,90.819,90.698,10.19830084]
[1770243564460,4.9253116,90.819,90.68,7.58435225]
[1770243564461,4.9253116,90.819,90.695,10.19830084]
[1770243564659,4.9253116,90.819,90.693,10.19830084]
[1770243564857,4.89976011,90.794,90.727,9.9426]
[1770243565452,4.89976011,90.794,90.751,0.06950207]
[1770243565651,4.89976011,90.794,90.727,9.9426]
[1770243566958,4.73029866,90.791,90.687,10.19830084]
[1770243567159,4.73029866,90.791,90.68,7.58435225]
[1770243567756,4.73029866,90.776,90.712,9.9443]
[1770243567956,4.73029866,90.776,90.713,2.76106812]
[1770243568152,4.73029866,90.776,90.714,2.76106812]
[1770243568354,4.72639448,90.772,90.715,2.76106812]
[1770243568559,4.72639448,90.772,90.555,47.77518047]
[1770243568560,4.72639448,90.772,90.716,2.76106812]
[1770243568858,4.72639448,90.772,90.717,2.76106812]
[1770243569060,4.72639448,90.759,90.718,2.76106812]
[1770243569261,4.72639448,90.759,90.719,2.76106812]
[1770243569462,7.58435225,90.8,90.673,10.19830084]
[1770243569463,4.72639448,90.777,90.72,2.76106812]
[1770243569764,4.72639448,90.775,90.721,2.76106812]
[1770243570064,4.72639448,90.775,90.722,2.76106812]
[1770243570260,4.72639448,90.775,90.68,7.58435225]
[1770243570562,4.72545461,90.758,90.681,2.76148615]
[1770243570755,4.72545461,90.758,90.682,2.76148615]
[1770243570962,4.72545461,90.758,90.683,2.76148615]
[1770243571154,4.72545461,90.758,90.66,17.78265309]
[1770243571155,4.72545461,90.758,90.684,2.76148615]
[1770243571360,4.72545461,90.752,90.696,9.946]
[1770243571663,4.72545461,90.752,90.653,11.51268075]
[1770243571861,4.72545461,90.752,90.653,1.31437991]
[1770243572066,19.8716,90.791,90.672,9.9487]
[1770243572067,3.80308197,90.728,90.672,9.9487]
[1770243572366,3.80308197,90.728,90.653,1.31437991]
[1770243572759,9.9428,90.727,90.664,9.9496]
[1770243572963,9.9428,90.727,90.653,1.31437991]
[1770243572964,3.80308197,90.726,90.653,1.31437991]
[1770243574162,3.80308197,90.726,90.664,9.9496]
[1770243574367,3.80308197,90.726,90.653,1.31437991]
[1770243575763,3.80308197,90.723,90.653,1.31437991]
[1770243576165,3.80308197,90.723,90.671,9.9488]
[1770243576762,7.58435225,90.78,90.679,9.9479]
[1770243576763,3.80308197,90.753,90.679,9.9479]
[1770243576964,3.80308197,90.753,90.68,1.26428042]
[1770243577568,3.80308197,90.743,90.68,1.26428042]
[1770243577866,3.80308197,90.743,90.641,1.26428042]
[1770243578457,3.80308197,90.743,90.64,7.58435225]
[1770243578458,3.80308197,90.743,90.668,0.92914331]
[1770243578959,3.80308197,90.741,90.668,0.92914331]
[1770243579869,3.80308197,90.741,90.673,9.9486]
[1770243581165,3.80308197,90.741,90.674,0.86481663]
[1770243581363,3.80308197,90.741,90.644,0.86481663]
[1770243581567,3.80308197,90.739,90.644,0.86481663]
[1770243581762,3.80308197,90.789,90.681,0.86481663]
[1770243582573,3.80308197,90.761,90.7,9.9457]
[1770243583461,3.80308197,90.752,90.692,9.9466]
[1770243584770,3.80308197,90.749,90.692,9.9466]
[1770243585671,9.9412,90.741,90.681,10.81261663]
[1770243586066,3.80308197,90.749,90.686,0.76230134]
[1770243587166,3.80308197,90.739,90.686,0.76230134]
[1770243587673,13.74458197,90.739,90.686,0.76230134]
[1770243587971,3.80308197,90.739,90.686,0.76230134]
[1770243588570,3.80308197,90.739,90.673,9.9486]
[1770243588866,3.80308197,90.739,90.665,0.71613056]
[1770243589068,3.80308197,90.739,90.667,0.71613056]
[1770243589274,3.80308197,90.739,90.669,0.71613056]
[1770243589573,3.80308197,90.739,90.671,0.71613056]
[1770243589773,3.80308197,90.739,90.682,9.9476]
[1770243589969,19.8723,90.788,90.655,0.71613056]
[1770243589970,3.80308197,90.737,90.655,0.71613056]
[1770243590274,3.80308197,90.737,90.657,0.71613056]
[1770243590468,3.80308197,90.737,90.658,2.76236667]
[1770243590767,3.80308197,90.737,90.659,0.63850476]
[1770243590973,3.80308197,90.737,90.661,0.63850476]
[1770243591177,3.80308197,90.755,90.663,0.63850476]
[1770243591371,3.80308197,90.755,90.665,0.63850476]
[1770243591565,3.80308197,90.755,90.667,0.63850476]
[1770243591764,3.80308197,90.793,90.698,0.63850476]
[1770243592070,3.80308197,90.793,90.7,0.63850476]
[1770243592374,3.80308197,90.793,90.734,9.942]
[1770243592570,3.80308197,90.817,90.736,0.56275942]
[1770243592774,3.80308197,90.817,90.738,0.56275942]
[1770243593070,3.80308197,90.817,90.74,0.56275942]
[1770243593271,3.80308197,90.817,90.742,0.56275942]
[1770243593472,3.80308197,90.817,90.744,0.56275942]
[1770243593673,3.80308197,90.817,90.745,3.32512609]
[1770243593874,3.80308197,90.817,90.746,2.76236667]
[1770243594074,3.80308197,90.817,90.748,0.5628743]
[1770243594272,3.80308197,90.817,90.749,2.76236667]
[1770243594477,3.80308197,90.817,90.748,0.5628743]
[1770243595276,3.79759326,90.815,90.748,0.5628743]
[1770243596883,3.79759326,90.815,90.751,0.57691742]
[1770243597381,3.79759326,90.815,90.762,9.9388]
[1770243597678,3.79759326,90.849,90.763,0.57691742]
[1770243598579,3.79759326,90.844,90.767,0.57849681]
[1770243599182,3.79759326,90.844,90.787,0.58202142]
[1770243599380,3.71273241,90.861,90.787,0.58202142]
[1770243599685,3.71273241,90.919,90.787,0.58202142]
[1770243599884,3.71273241,90.888,90.803,0.58202142]
[1770243600682,3.71247276,90.878,90.803,0.58202142]
[1770243601178,3.71247276,90.896,90.803,0.58202142]
[1770243601680,3.71247276,90.896,90.826,0.58254074]
[1770243602271,3.71247276,90.894,90.826,0.58254074]
[1770243602476,3.71247276,90.894,90.807,0.58532082]
[1770243603686,3.71108271,90.882,90.811,9.9335]
[1770243604179,3.71108271,90.882,90.807,0.58532082]
[1770243604582,3.73093573,90.879,90.808,9.9339]
[1770243604778,3.73093573,90.879,90.744,10.19830084]
[1770243604779,154.4089,90.878,90.745,0.54561478]
[1770243604982,154.3438,90.917,90.745,0.54561478]
[1770243604983,3.73093573,90.877,90.745,0.54561478]
[1770243605285,3.73093573,90.851,90.769,9.9381]
[1770243605485,3.73093573,90.851,90.77,0.54561478]
[1770243605887,3.73093573,90.851,90.776,9.9374]
[1770243606085,3.73093573,90.851,90.777,0.54561478]
[1770243606582,3.73093573,90.851,90.794,9.9354]
[1770243606888,3.77124288,90.879,90.795,0.46500049]
[1770243607084,3.77124288,90.879,90.815,9.933]
[1770243607288,3.77124288,90.879,90.816,0.46500049]
[1770243607788,3.77124288,90.879,90.819,0.46500049]
[1770243608690,3.77124288,90.879,90.821,9.9324]
[1770243608881,3.77124288,90.879,90.819,0.46500049]
[1770243609687,3.77124288,90.879,90.822,9.9322]
[1770243610489,3.77124288,90.879,90.822,10.41290514]
[1770243610886,3.77124288,90.879,90.822,0.48070514]
[1770243611187,3.76339055,90.898,90.822,0.48070514]
[1770243611887,3.76339055,90.898,90.827,0.48070514]
[1770243612090,3.76339055,90.898,90.763,0.48070514]
[1770243612386,3.76339055,90.898,90.781,0.48070514]
[1770243612586,3.76339055,90.898,90.78,7.59073709]
[1770243612587,3.76339055,90.898,90.814,0.59983871]
[1770243613390,3.76339055,90.898,90.8,7.59073709]
[1770243613391,3.76339055,90.898,90.84,0.59983871]
[1770243613687,3.70382377,90.959,90.84,0.59983871]
[1770243613995,3.70382377,90.959,90.855,9.9287]
[1770243614183,3.70382377,90.924,90.84,0.59983871]
[1770243614386,3.70382377,90.924,90.861,9.928]
[1770243614587,3.70382377,90.924,90.861,10.58052187]
[1770243615684,3.70382377,90.924,90.861,0.65252187]
[1770243616790,3.75122529,90.921,90.861,0.65252187]
[1770243617382,0.06935394,90.9,90.861,0.65252187]
[1770243617790,0.06935394,90.9,90.842,9.9301]
[1770243618391,3.75122529,90.904,90.842,9.9301]
[1770243619394,3.75122529,90.904,90.842,10.43138013]
[1770243619593,3.75122529,90.904,90.843,0.50128013]
[1770243620695,3.75122529,90.904,90.844,0.50429476]
[1770243622496,3.75122529,90.904,90.851,9.9291]
[1770243623590,3.75122529,90.904,90.844,0.50429476]
[1770243623796,3.75122529,90.904,90.801,0.57532864]
[1770243624695,3.75122529,90.904,90.832,0.94011721]
[1770243625594,3.75122529,90.904,90.85,10.86931721]
[1770243625794,3.75122529,90.904,90.85,0.94011721]
[1770243626695,3.75122529,90.904,90.858,9.9283]
[1770243627297,3.75122529,90.904,90.86,9.9281]
[1770243627496,3.75122529,90.904,90.85,0.94011721]
[1770243628699,3.75122529,90.904,90.861,9.928]
[1770243629903,3.8740904,90.923,90.864,1.12642583]
[1770243631897,3.8740904,90.923,90.83,7.59073709]
[1770243631898,3.8740904,90.923,90.851,1.16910952]
[1770243632701,3.8740904,90.923,90.863,9.9278]
[1770243632908,3.8740904,90.923,90.851,1.16910952]
[1770243633299,3.8740904,90.923,90.872,9.9269]
[1770243633995,0.06951219,90.907,90.881,9.9259]
[1770243634196,3.8740904,90.939,90.872,1.20432157]
[1770243636197,3.8740904,90.937,90.873,9.9267]
[1770243637001,3.8740904,90.937,90.881,9.9258]
[1770243637599,3.8740904,90.934,90.872,9.9269]
[1770243637802,3.8740904,90.934,90.856,1.35124142]
[1770243638813,3.8740904,90.922,90.864,9.9277]
[1770243639309,3.8740904,90.922,90.865,1.17821171]
[1770243639709,3.8740904,90.922,90.885,9.9254]
[1770243639910,3.8740904,90.922,90.865,1.17821171]
[1770243640307,3.8740904,90.959,90.89,9.9248]
[1770243641112,3.8740904,90.955,90.89,9.9248]
[1770243642020,3.8740904,90.944,90.881,9.9258]
[1770243642211,3.8740904,90.944,90.882,1.17287616]
[1770243643316,3.8740904,90.944,90.889,9.9249]
[1770243644219,3.8740904,90.942,90.889,9.9249]
[1770243644421,3.8740904,90.942,90.882,1.17287616]
[1770243645719,3.8740904,90.942,90.891,9.9247]
[1770243646519,3.8740904,90.942,90.907,0.0692933]
[1770243647120,3.8740904,90.942,90.896,9.9242]
[1770243648525,3.8740904,90.957,90.897,1.48259524]
[1770243648718,13.7916904,90.957,90.897,1.48259524]
[1770243649026,3.8740904,90.956,90.897,1.48259524]
[1770243650828,3.8740904,90.956,90.898,11.40850992]
[1770243651427,3.8740904,90.956,90.901,1.48450992]
[1770243652626,3.8740904,90.974,90.901,1.48450992]
[1770243652826,3.8740904,90.974,90.91,1.52059953]
[1770243653828,3.8740904,90.967,90.91,1.52059953]
[1770243654432,3.8740904,90.967,90.916,9.9218]
[1770243655128,3.8740904,90.967,90.916,11.48164265]
[1770243655424,3.8740904,90.967,90.917,1.55984265]
[1770243656732,3.8740904,90.967,90.933,0.06996627]
[1770243659230,3.88569628,90.982,90.933,0.06996627]
[1770243659830,3.88569628,90.982,90.917,1.55984265]
[1770243660433,3.88569628,90.98,90.904,9.9234]
[1770243660726,3.88569628,90.98,90.904,1.8638057]
[1770243660927,3.88569628,90.98,90.925,9.921]
[1770243661232,3.88569628,90.98,90.926,1.8638057]
[1770243662937,3.88569628,90.98,90.927,9.9209]
[1770243663336,3.88569628,90.98,90.935,9.92]
[1770243663529,3.88569628,90.98,90.926,1.8638057]
[1770243663736,3.88569628,91.004,90.926,1.8638057]
[1770243663936,3.88569628,91.004,90.949,1.86016815]
[1770243665632,3.88569628,91.004,90.967,0.06962319]
[1770243668136,3.88569628,91.05,90.968,1.90058019]
[1770243668530,3.88569628,91.068,91.002,1.77787428]
[1770243668933,3.88569628,91.113,91.002,1.77787428]
[1770243670238,3.88569628,91.087,91.01,1.77787428]
[1770243671139,3.88569628,91.086,91.015,1.74393112]
[1770243672338,3.88569628,91.086,91.027,9.9099]
[1770243672637,3.88569628,91.108,91.028,1.72871134]
[1770243672842,3.88569628,91.108,91.055,1.72871134]
[1770243673642,3.88569628,91.145,91.055,1.72871134]
[1770243673843,3.88569628,91.135,91.055,1.72871134]
[1770243674344,3.88569628,91.154,91.086,1.72871134]
[1770243674838,3.88569628,91.183,91.086,1.72871134]
[1770243675243,3.88569628,91.182,91.086,1.72871134]
[1770243676141,3.88569628,91.182,91.11,1.73582697]
[1770243676846,3.88569628,91.203,91.125,1.82290644]
[1770243677140,3.88569628,91.203,91.101,1.82290644]
[1770243677437,1.9092974,91.224,91.111,11.72370644]
[1770243677438,3.88569628,91.192,91.111,11.72370644]
[1770243677643,3.88569628,91.192,91.112,1.82290644]
[1770243678245,3.88569628,91.192,91.098,9.9022]
[1770243678544,3.88569628,91.192,91.099,1.76830668]
[1770243678743,3.88569628,91.19,91.099,1.76830668]
[1770243678942,3.88569628,91.19,91.127,1.76830668]
[1770243679143,3.88569628,91.19,91.101,1.76830668]
[1770243679541,3.88569628,91.19,91.115,9.9004]
[1770243680041,3.88569628,91.188,91.103,1.76830668]
[1770243680439,3.88569628,91.186,91.095,9.9026]
[1770243680645,3.88569628,91.186,91.096,1.7896379]
[1770243681146,3.88569628,91.186,91.107,9.9012]
[1770243681751,3.88569628,91.186,91.074,1.7896379]
[1770243682347,3.88569628,91.168,91.074,1.7896379]
[1770243682647,3.88569628,91.165,91.086,9.9035]
[1770243682841,3.88569628,91.165,91.087,1.81962124]
[1770243683350,3.88569628,91.165,91.07,1.81962124]
[1770243683847,3.89437903,91.161,91.071,9.9051]
[1770243684245,3.89437903,91.159,91.031,1.81808813]
[1770243684545,3.89437903,91.132,91.031,1.81808813]
[1770243684947,3.89437903,91.132,91.055,1.8901622]
[1770243685741,3.89437903,91.132,91.059,9.9065]
[1770243686544,3.89437903,91.13,91.046,9.9078]
[1770243687447,3.89437903,91.112,91.035,1.79844954]
[1770243687752,3.89437903,91.112,91.011,1.79844954]
[1770243688749,3.89437903,91.098,91.03,9.9096]
[1770243688951,3.89437903,91.098,91.011,1.79844954]
[1770243689347,19.7854,91.187,91.047,1.88555559]
[1770243689348,3.89437903,91.129,91.047,1.88555559]
[1770243690149,3.89437903,91.129,91.059,9.9064]
[1770243690550,3.89437903,91.129,91.047,1.88555559]
[1770243691452,3.89437903,91.129,91.058,9.9065]
[1770243691853,3.89437903,91.129,91.025,2.2415739]
[1770243692149,3.89437903,91.129,91.051,2.2415739]
[1770243692854,3.89437903,91.129,91.074,9.9048]
[1770243693153,3.89437903,91.129,91.081,0.06939973]
[1770243693356,3.89437903,91.146,91.091,9.9029]
[1770243693653,3.89437903,91.146,91.081,2.5366313]
[1770243693861,3.89437903,91.146,91.081,2.46723157]
[1770243694350,3.89437903,91.146,91.081,12.37123157]
[1770243694654,3.89437903,91.146,91.081,2.46723157]
[1770243695156,3.89437903,91.146,91.09,9.9031]
[1770243695452,3.89437903,91.146,91.099,9.9021]
[1770243695951,3.89437903,91.211,91.091,2.4537025]
[1770243696144,3.89437903,91.211,91.132,2.4537025]
[1770243696350,3.89437903,91.211,91.141,2.4537025]
[1770243696655,3.89437903,91.211,91.092,154.0448]
[1770243696656,1.90895701,91.265,91.213,2.46625046]
[1770243696856,3.89437903,91.285,91.213,2.46625046]
[1770243697153,153.5149,91.408,91.2,7.55459945]
[1770243697154,153.5113,91.41,91.285,1.90676051]
[1770243697449,153.4889,91.423,91.241,3.96244169]
[1770243697450,7.55459945,91.37,91.241,3.96244169]
[1770243697652,7.55459945,91.35,91.241,3.96244169]
[1770243698056,7.55459945,91.35,91.22,7.55459945]
[1770243698247,153.6201,91.345,91.195,3.96244169]
[1770243698452,7.55459945,91.29,91.175,3.96244169]
[1770243699051,3.89437903,91.273,91.179,3.96244169]
[1770243699754,3.89437903,91.264,91.151,3.96244169]
[1770243700457,3.89437903,91.246,91.135,9.8982]
[1770243700653,3.89437903,91.246,91.136,3.96244169]
[1770243700851,3.89437903,91.246,91.157,3.96244169]
[1770243701261,3.89437903,91.246,91.135,3.96244169]
[1770243701450,3.89437903,91.246,91.139,3.96244169]
[1770243702358,3.89437903,91.246,91.159,3.96244169]
[1770243702861,3.89437903,91.246,91.161,3.96244169]
[1770243703249,3.89437903,91.245,91.161,3.96244169]
[1770243703856,3.89437903,91.241,91.131,3.96244169]
[1770243704254,3.89437903,91.238,91.132,3.96244169]
[1770243704751,3.89437903,91.229,91.11,3.96244169]
[1770243705056,3.89437903,91.192,91.11,3.96244169]
[1770243705353,1.90915076,91.212,91.112,3.96244169]
[1770243705560,3.89437903,91.259,91.171,3.96244169]
[1770243705756,7.55459945,91.36,91.135,153.972]
[1770243705757,3.89437903,91.279,91.191,3.96244169]
[1770243706357,3.89437903,91.279,91.207,3.96244169]
[1770243706558,3.89437903,91.279,91.21,7.55459945]
[1770243707557,3.89437903,91.304,91.23,7.55459945]
[1770243707957,3.89437903,91.304,91.231,3.96244169]
[1770243708360,3.89437903,91.304,91.211,3.96244169]
[1770243708761,3.89437903,91.304,91.191,3.96244169]
[1770243708958,1.90703741,91.315,91.241,3.96244169]
[1770243709156,3.89437903,91.314,91.241,3.96244169]
[1770243710055,3.89437903,91.314,91.221,3.96244169]
[1770243710256,3.89437903,91.344,91.241,3.96244169]
[1770243710763,3.89437903,91.342,91.241,3.96244169]
[1770243711464,1.90656202,91.345,91.241,3.96244169]
[1770243711465,3.89437903,91.334,91.242,9.8865]
[1770243711665,3.89437903,91.334,91.241,3.96244169]
[1770243712065,3.89437903,91.332,91.221,3.96244169]
[1770243712967,3.89437903,91.332,91.24,9.8868]
[1770243713462,3.89437903,91.332,91.221,3.96244169]
[1770243713659,3.89437903,91.332,91.252,3.96244169]
[1770243714266,3.89437903,91.332,91.264,9.8842]
[1770243714760,3.89437903,91.332,91.265,2.74440408]
[1770243714957,3.89437903,91.332,91.266,2.74440408]
[1770243715161,3.89437903,91.332,91.267,2.74440408]
[1770243715362,3.89437903,91.332,91.268,2.74440408]
[1770243715563,3.89437903,91.332,91.269,2.74440408]
[1770243715869,3.89437903,91.332,91.271,3.63747532]
[1770243716069,3.89437903,91.332,91.272,2.74440408]
[1770243716369,7.49673082,91.39,91.283,13.51957532]
[1770243716370,3.94789391,91.364,91.283,13.51957532]
[1770243716565,5.85383986,91.385,91.285,3.63747532]
[1770243716768,3.94789391,91.384,91.306,9.8796]
[1770243716975,3.94789391,91.384,91.307,2.74319258]
[1770243717265,3.94789391,91.384,91.306,9.8796]
[1770243717669,3.94789391,91.405,91.321,3.63747532]
[1770243717866,9.8691,91.405,91.322,2.74324783]
[1770243718064,1.90517902,91.415,91.301,3.63747532]
[1770243718266,3.94789391,91.487,91.373,153.57]
[1770243718470,3.94789391,91.487,91.362,153.5886]
[1770243718471,9.391e-05,91.487,91.396,3.63747532]
[1770243718774,153.2551,91.562,91.398,3.63747532]
[1770243718966,153.2045,91.593,91.411,3.63747532]
[1770243719167,7.49673082,91.51,91.411,3.63747532]
[1770243719371,7.49673082,91.51,91.412,2.73981082]
[1770243719666,153.2184,91.584,91.419,3.98416705]
[1770243719868,7.49673082,91.56,91.421,3.98416705]
[1770243720073,7.49673082,91.56,91.423,3.98416705]
[1770243720372,3.96306689,91.599,91.461,3.98416705]
[1770243720572,3.96306689,91.589,91.463,3.98416705]
[1770243720865,3.96306689,91.589,91.475,3.98416705]
[1770243721067,3.96306689,91.589,91.477,3.98416705]
[1770243721275,3.96306689,91.559,91.455,3.98416705]
[1770243721669,3.96306689,91.559,91.481,9.8607]
[1770243721971,7.49673082,91.61,91.484,3.98416705]
[1770243722172,1.90158739,91.589,91.486,3.98416705]
[1770243722371,1.90158739,91.589,91.433,153.4702]
[1770243722372,152.9143,91.767,91.579,153.2263]
[1770243722576,7.49673082,91.68,91.573,3.98416705]
[1770243722772,9.8419,91.657,91.549,3.98416705]
[1770243723076,7.49673082,91.71,91.591,3.98416705]
[1770243723271,152.9044,91.773,91.59,7.49673082]
[1770243723272,7.49673082,91.73,91.61,7.49673082]
[1770243723470,7.49673082,91.73,91.564,153.2505]
[1770243723471,7.49673082,91.77,91.651,3.98416705]
[1770243723768,3.96306689,91.726,91.621,3.98416705]
[1770243723969,3.96306689,91.709,91.596,3.98416705]
[1770243724372,3.96306689,91.709,91.603,3.98416705]
[1770243724667,3.96306689,91.709,91.571,3.98416705]
[1770243724868,3.96306689,91.709,91.54,32.02230991]
[1770243724869,3.96306689,91.688,91.581,3.98416705]
[1770243725264,3.96306689,91.688,91.505,153.3498]
[1770243725265,152.854,91.803,91.584,3.98416705]
[1770243725467,32.02230991,91.83,91.662,3.98416705]
[1770243725668,32.02230991,91.83,91.661,153.0893]
[1770243725669,1.89775051,91.802,91.677,3.98416705]
[1770243725972,152.6149,91.947,91.75,3.98416705]
[1770243726172,32.02230991,91.93,91.754,3.98416705]
[1770243726376,152.6299,91.938,91.758,3.98416705]
[1770243726567,152.6637,91.917,91.771,3.98416705]
[1770243726773,152.6314,91.937,91.771,3.98416705]
[1770243726973,9.816,91.899,91.774,3.98416705]
[1770243727170,32.02230991,91.91,91.774,3.98416705]
[1770243727373,152.6454,91.928,91.709,153.0091]
[1770243727374,0.72162873,91.899,91.79,3.98416705]
[1770243727868,0.72162873,91.927,91.79,3.98416705]
[1770243728070,0.72162873,91.927,91.77,32.02230991]
[1770243728071,0.72162873,91.927,91.791,3.98416705]
[1770243728672,0.38346203,91.899,91.791,3.98416705]
[1770243728876,0.38346203,91.899,91.769,9.8298]
[1770243728877,0.38346203,91.888,91.741,3.98416705]
[1770243729178,0.38346203,91.853,91.741,3.98416705]
[1770243729874,152.7453,91.868,91.659,153.0923]
[1770243729875,0.38346203,91.841,91.715,3.98416705]
[1770243730177,9.8227,91.836,91.715,3.98416705]
[1770243730478,0.38346203,91.835,91.715,3.98416705]
[1770243730674,0.21317671,91.861,91.715,3.98416705]
[1770243730872,0.21317671,91.861,91.739,3.98416705]
[1770243731777,0.21317671,91.861,91.762,3.98416705]
[1770243731982,0.21317671,91.861,91.695,153.0312]
[1770243731983,0.21317671,91.861,91.735,3.98416705]
[1770243732179,0.21317671,91.843,91.735,3.98416705]
[1770243732376,0.21317671,91.84,91.735,3.98416705]
[1770243732581,32.02230991,91.83,91.707,4.01312454]
[1770243732882,32.02230991,91.83,91.681,4.01312454]
[1770243732883,152.8256,91.82,91.681,4.01312454]
[1770243733071,152.8256,91.82,91.641,4.01312454]
[1770243733072,32.02230991,91.8,91.641,4.01312454]
[1770243733271,152.8428,91.809,91.641,4.01312454]
[1770243733471,32.02230991,91.83,91.663,4.01312454]
[1770243733772,152.8113,91.828,91.667,4.01312454]
[1770243733972,184.83090991,91.83,91.668,4.01312454]
[1770243734180,32.02230991,91.77,91.639,4.01312454]
[1770243734377,152.9666,91.735,91.613,4.01312454]
[1770243734576,32.02230991,91.73,91.613,4.01312454]
[1770243734778,152.9899,91.721,91.586,4.02727622]
[1770243734976,9.8378,91.695,91.586,4.02727622]
[1770243735275,9.8378,91.695,91.522,153.3219]
[1770243735276,9.8378,91.695,91.565,4.02727622]
[1770243735674,9.8378,91.695,91.569,9.8513]
[1770243735878,9.84,91.675,91.565,4.02727622]
[1770243736176,32.02230991,91.7,91.565,4.02727622]
[1770243736374,9.84,91.675,91.565,4.02727622]
[1770243736574,153.002,91.714,91.538,4.08877196]